lending/lending_fUSD_20251124
["ID","MTS","AMOUNT","RATE_DAILY","PERIOD"]
[394826185,1763996220582,-250.0,0.00016103,2]
[394826186,1763996220608,-195.0,0.00016168,2]
[394826187,1763996220630,-250.0,0.00016168,2]
[394826188,1763996220651,-257.55555952,0.00016173,2]
[394826189,1763996220672,-257.55555952,0.00016186,2]
[394826190,1763996220694,-1080.34600037,0.00016199,2]
[394826191,1763996220716,-411.17638408,0.00016199,2]
[394826192,1763996220738,-257.55555952,0.00016199,2]
[394826193,1763996220762,-157.76984889,0.00016199,2]
[394826194,1763996220782,-150.0,0.0001625,2]
[394826195,1763996220803,-500.0,0.00016273,2]
[394826196,1763996220823,-500.0,0.00016273,2]
[394826197,1763996220843,-500.0,0.00016273,2]
[394826198,1763996220864,-500.0,0.00016273,2]
[394826199,1763996220884,-500.0,0.00016273,2]
[394826200,1763996220905,-500.0,0.00016273,2]
[394826201,1763996220927,-500.0,0.00016273,2]
[394826202,1763996220948,-500.0,0.00016273,2]
[394826203,1763996220970,-38.0410881,0.00016294,2]
[394826204,1763996273718,250.0,0.00015276,2]
[394826222,1763996480559,-545.7361063,0.00016033,2]
[394826223,1763996481195,-32.47313678,0.00016033,2]
[394826225,1763996607691,1098.97,0.00015497,2]
[394826226,1763996671438,318.11,0.00015474,2]
[394826227,1763996711195,166.85,0.00019178,30]
[394826228,1763996734412,163.75,0.00015442,2]
[394826231,1763997031680,-194.01,0.00016155,3]
[394826232,1763997031689,-195.0,0.00016156,2]
[394826233,1763997031700,-250.0,0.00016156,2]
[394826234,1763997031709,-195.0,0.00016157,2]
[394826235,1763997031718,-195.0,0.00016157,2]
[394826236,1763997031727,-370.24864648,0.0001616,2]
[394826237,1763997031736,-1806.46,0.00016167,2]
[394826238,1763997031745,-88394.28135352,0.00016195,2]
[394826239,1763997031757,-2820.93271487,0.00016195,2]
[394826240,1763997031794,-1722.90736263,0.00016195,2]
[394826241,1763997031805,-7176.23705888,0.00016195,2]
[394826242,1763997031817,-16084.39522017,0.00016195,2]
[394826249,1763997032010,-515.55970973,0.00016195,2]
[394826250,1763997032021,-4244.52222613,0.00016195,2]
[394826251,1763997032032,-5150.28840113,0.00016195,2]
[394826253,1763997032043,-1635.87974377,0.00016195,2]
[394826254,1763997032054,-1611.69488054,0.00016195,2]
[394826258,1763997037762,-354.0347142,0.00016195,2]
[394826274,1763997039831,-6792.03727775,0.00016195,2]
[394826275,1763997039843,-623497.22933668,0.00016195,2]
[394826276,1763997039854,-2500.0,0.00016196,2]
[394826277,1763997039864,-1200.0,0.00016197,2]
[394826278,1763997039874,-1200.0,0.00016198,2]
[394826279,1763997039884,-300.0,0.00016198,2]
[394826280,1763997039894,-157.76984885,0.00016199,2]
[394826281,1763997039904,-370.05874569,0.00016199,2]
[394826282,1763997039914,-945.30275035,0.00016199,2]
[394826283,1763997039929,-153.45389376,0.00016199,2]
[394826284,1763997039938,-150.0,0.000162,2]
[394826285,1763997039949,-150.0,0.000162,2]
[394826286,1763997039960,-150.0,0.000162,2]
[394826287,1763997039969,-150.0,0.000162,2]
[394826288,1763997039978,-150.0,0.000162,2]
[394826289,1763997039987,-150.0,0.000162,2]
[394826290,1763997039996,-150.0,0.000162,2]
[394826291,1763997040006,-222.90736263,0.000162,2]
[394826292,1763997040015,-150.0,0.000162,2]
[394826293,1763997040025,-150.0,0.000162,2]
[394826294,1763997040035,-150.0,0.000162,2]
[394826295,1763997040044,-550.0,0.00016272,2]
[394826296,1763997040053,-500.0,0.00016273,2]
[394826297,1763997040063,-500.0,0.00016273,2]
[394826298,1763997040072,-500.0,0.00016273,2]
[394826299,1763997040081,-501.01450029,0.00016273,2]
[394826300,1763997040092,-500.0,0.00016273,2]
[394826301,1763997040101,-500.0,0.00016273,2]
[394826302,1763997040111,-500.0,0.00016273,2]
[394826303,1763997040121,-500.0,0.00016273,2]
[394826304,1763997040130,-500.0,0.00016273,2]
[394826305,1763997040140,-2079.415,0.00016286,2]
[394826306,1763997040150,-165.442,0.00016286,2]
[394826307,1763997040160,-1386.78395259,0.00016287,2]
[394826308,1763997040175,-250.0,0.00016287,2]
[394826309,1763997040185,-203.77090285,0.00016287,2]
[394826310,1763997040195,-500.0,0.00016287,2]
[394826311,1763997040205,-500.0,0.00016287,2]
[394826312,1763997040215,-500.0,0.00016287,2]
[394826313,1763997040224,-500.0,0.00016287,2]
[394826314,1763997040234,-500.0,0.00016287,2]
[394826315,1763997040244,-500.0,0.00016287,2]
[394826316,1763997040253,-500.0,0.00016287,2]
[394826317,1763997040263,-500.0,0.00016287,2]
[394826318,1763997040272,-500.0,0.00016287,2]
[394826319,1763997040282,-285.48933173,0.00016287,2]
[394826320,1763997040292,-500.0,0.00016287,2]
[394826321,1763997040302,-500.0,0.00016287,2]
[394826322,1763997040313,-500.0,0.00016287,2]
[394826323,1763997040331,-500.0,0.00016287,2]
[394826324,1763997040341,-500.0,0.00016287,2]
[394826325,1763997040350,-500.0,0.00016287,2]
[394826326,1763997040359,-620.0,0.00016287,2]
[394826327,1763997040370,-500.0,0.00016287,2]
[394826328,1763997040380,-500.0,0.00016287,2]
[394826329,1763997040389,-500.0,0.00016287,2]
[394826330,1763997040399,-500.0,0.00016287,2]
[394826331,1763997040409,-500.0,0.00016287,2]
[394826332,1763997040421,-500.0,0.00016287,2]
[394826333,1763997040430,-500.0,0.00016287,2]
[394826334,1763997040440,-500.0,0.00016287,2]
[394826335,1763997040450,-500.0,0.00016287,2]
[394826336,1763997040460,-500.0,0.00016287,2]
[394826337,1763997040470,-500.0,0.00016287,2]
[394826338,1763997040479,-500.0,0.00016287,2]
[394826339,1763997040489,-500.0,0.00016287,2]
[394826340,1763997040498,-500.0,0.00016287,2]
[394826341,1763997040508,-500.0,0.00016287,2]
[394826342,1763997040517,-500.0,0.00016287,2]
[394826343,1763997040526,-500.0,0.00016287,2]
[394826344,1763997040535,-500.0,0.00016287,2]
[394826345,1763997040546,-500.0,0.00016287,2]
[394826347,1763997040555,-500.0,0.00016287,2]
[394826349,1763997040564,-500.0,0.00016287,2]
[394826350,1763997040574,-500.0,0.00016287,2]
[394826351,1763997040583,-500.0,0.00016287,2]
[394826353,1763997040592,-500.0,0.00016287,2]
[394826354,1763997040602,-500.0,0.00016287,2]
[394826355,1763997040612,-500.0,0.00016287,2]
[394826356,1763997040621,-500.0,0.00016287,2]
[394826357,1763997040630,-500.0,0.00016287,2]
[394826358,1763997040792,-500.0,0.00016287,2]
[394826359,1763997040808,-500.0,0.00016287,2]
[394826360,1763997040818,-500.0,0.00016287,2]
[394826361,1763997040828,-500.0,0.00016287,2]
[394826362,1763997040837,-500.0,0.00016287,2]
[394826363,1763997040847,-500.0,0.00016287,2]
[394826364,1763997040857,-500.0,0.00016287,2]
[394826365,1763997040866,-500.0,0.00016287,2]
[394826366,1763997040876,-500.0,0.00016287,2]
[394826367,1763997040886,-151.0,0.00016287,2]
[394826368,1763997040896,-682.93,0.00016287,2]
[394826369,1763997040905,-477.88929844,0.00016294,2]
[394826370,1763997040914,-500.0,0.00016295,2]
[394826371,1763997040926,-500.0,0.00016295,2]
[394826372,1763997040935,-500.0,0.00016295,2]
[394826373,1763997040944,-581.01887684,0.00016295,2]
[394826374,1763997040954,-500.0,0.00016295,2]
[394826375,1763997040963,-500.0,0.00016295,2]
[394826376,1763997040972,-500.0,0.00016295,2]
[394826377,1763997040981,-500.0,0.00016295,2]
[394826378,1763997040991,-500.0,0.00016295,2]
[394826379,1763997041000,-605.61309222,0.00016295,2]
[394826380,1763997041009,-500.0,0.00016295,2]
[394826381,1763997041018,-500.0,0.00016295,2]
[394826382,1763997041028,-500.0,0.00016295,2]
[394826383,1763997041037,-500.0,0.00016295,2]
[394826384,1763997041047,-500.0,0.00016295,2]
[394826385,1763997041057,-500.0,0.00016295,2]
[394826386,1763997041066,-500.0,0.00016295,2]
[394826387,1763997041075,-500.0,0.00016295,2]
[394826388,1763997041085,-500.0,0.00016295,2]
[394826389,1763997041095,-500.0,0.00016295,2]
[394826390,1763997041105,-500.0,0.00016295,2]
[394826391,1763997041115,-500.0,0.00016295,2]
[394826392,1763997041125,-500.0,0.00016295,2]
[394826393,1763997041135,-209.6595061,0.00016295,2]
[394826394,1763997041145,-500.0,0.00016295,2]
[394826395,1763997041154,-500.0,0.00016295,2]
[394826396,1763997041165,-500.0,0.00016295,2]
[394826397,1763997041179,-395.0,0.00016295,2]
[394826398,1763997041189,-500.0,0.00016295,2]
[394826399,1763997041198,-500.0,0.00016295,2]
[394826400,1763997041208,-500.0,0.00016295,2]
[394826401,1763997041217,-500.0,0.00016295,2]
[394826402,1763997041226,-500.0,0.00016295,2]
[394826403,1763997041236,-500.0,0.00016295,2]
[394826404,1763997041246,-500.0,0.00016295,2]
[394826405,1763997041255,-500.0,0.00016295,2]
[394826406,1763997041264,-500.0,0.00016296,2]
[394826407,1763997041274,-500.0,0.00016296,2]
[394826408,1763997041283,-500.0,0.00016296,2]
[394826409,1763997041293,-501.51391161,0.00016296,2]
[394826410,1763997041302,-500.0,0.00016296,2]
[394826411,1763997041316,-519.4667205,0.00016296,2]
[394826412,1763997041326,-500.0,0.00016296,2]
[394826413,1763997041336,-500.0,0.00016296,2]
[394826414,1763997041346,-500.0,0.00016296,2]
[394826415,1763997041356,-500.0,0.00016296,2]
[394826416,1763997041365,-471.0960947,0.00016296,2]
[394826417,1763997041375,-500.0,0.00016299,2]
[394826418,1763997041384,-500.0,0.00016299,2]
[394826419,1763997041394,-500.0,0.00016299,2]
[394826420,1763997041404,-500.0,0.00016299,2]
[394826421,1763997041414,-555.26791659,0.00016299,2]
[394826422,1763997041426,-151.0,0.00016342,2]
[394826423,1763997041435,-370.05874563,0.00016388,2]
[394826424,1763997041444,-500.0,0.00016396,2]
[394826425,1763997041453,-500.0,0.00016396,2]
[394826426,1763997041463,-500.0,0.00016396,2]
[394826427,1763997041471,-530.69689131,0.00016396,2]
[394826428,1763997041479,-500.0,0.00016396,2]
[394826429,1763997041488,-500.0,0.00016396,2]
[394826430,1763997041497,-500.0,0.00016396,2]
[394826431,1763997041507,-500.0,0.00016396,2]
[394826432,1763997041515,-500.0,0.00016396,2]
[394826433,1763997041525,-500.0,0.00016396,2]
[394826434,1763997041535,-151.0,0.00016397,2]
[394826435,1763997041544,-206.79501577,0.00016438,2]
[394826436,1763997041554,-500.0,0.00016438,2]
[394826437,1763997041563,-500.0,0.00016438,2]
[394826438,1763997041573,-500.0,0.00016438,2]
[394826439,1763997041582,-569.55644997,0.00016438,2]
[394826440,1763997041592,-257.05910787,0.00016438,2]
[394826441,1763997041600,-945.30275031,0.00016442,2]
[394826442,1763997041610,-151.0,0.00016452,2]
[394826443,1763997041620,-157.76984885,0.00016483,2]
[394826444,1763997041629,-151.0,0.00016507,2]
[394826445,1763997041639,-10980.43416665,0.0001656,2]
[394826446,1763997041649,-682.93,0.00016561,2]
[394826447,1763997041658,-151.0,0.00016562,2]
[394826448,1763997041668,-370.05874563,0.00016577,2]
[394826449,1763997041678,-151.0,0.00016617,2]
[394826451,1763997041687,-500.0,0.00016636,2]
[394826452,1763997041697,-500.0,0.00016637,2]
[394826453,1763997041707,-151.0,0.00016672,2]
[394826454,1763997041717,-945.30275031,0.00016685,2]
[394826455,1763997041727,-151.0,0.00016727,2]
[394826456,1763997041736,-157.76984885,0.00016766,2]
[394826457,1763997041746,-370.05874563,0.00016766,2]
[394826458,1763997041755,-151.0,0.00016782,2]
[394826459,1763997041764,-150.0,0.00016789,2]
[394826460,1763997041775,-1000.0,0.00016821,2]
[394826461,1763997041784,-1000.0,0.00016821,2]
[394826462,1763997041793,-481.42849134,0.00016821,2]
[394826463,1763997041802,-1000.0,0.00016821,2]
[394826464,1763997041812,-1000.0,0.00016821,2]
[394826465,1763997041822,-1000.0,0.00016821,2]
[394826466,1763997041832,-1000.0,0.00016821,2]
[394826467,1763997041841,-1000.0,0.00016821,2]
[394826468,1763997041851,-1438.09495884,0.00016835,2]
[394826469,1763997041860,-642.94,0.00016835,2]
[394826470,1763997041870,-682.93,0.00016835,2]
[394826471,1763997041879,-151.0,0.00016837,2]
[394826472,1763997041889,-151.0,0.00016892,2]
[394826473,1763997041899,-945.30275031,0.00016928,2]
[394826474,1763997041908,-151.0,0.00016947,2]
[394826475,1763997041920,-370.05874563,0.00016955,2]
[394826476,1763997041929,-2000.0,0.00017,2]
[394826477,1763997041939,-151.0,0.00017002,2]
[394826478,1763997041948,-157.76984885,0.0001705,2]
[394826479,1763997041962,-151.0,0.00017057,2]
[394826480,1763997041971,-150.0,0.000171,2]
[394826481,1763997041981,-682.93,0.00017108,2]
[394826482,1763997041991,-151.0,0.00017112,2]
[394826483,1763997042000,-370.05874563,0.00017144,2]
[394826484,1763997042010,-151.0,0.00017167,2]
[394826485,1763997042020,-945.30275031,0.00017171,2]
[394826486,1763997042030,-1600.0,0.00017186,2]
[394826487,1763997042040,-157.76984885,0.00017333,2]
[394826488,1763997042050,-370.05874563,0.00017333,2]
[394826489,1763997042060,-500.0,0.0001736,2]
[394826490,1763997042069,-200.0,0.0001736,2]
[394826491,1763997042079,-1500.0,0.00017368,2]
[394826492,1763997042090,-1500.0,0.00017368,2]
[394826493,1763997042100,-919.63831049,0.00017368,2]
[394826494,1763997042110,-803.22782121,0.00017368,2]
[394826495,1763997042119,-1500.0,0.00017368,2]
[394826496,1763997042128,-1007.61746335,0.00017368,2]
[394826497,1763997042138,-1500.0,0.00017368,2]
[394826498,1763997042148,-163.75,0.00017372,2]
[394826499,1763997042158,-682.93,0.00017382,2]
[394826500,1763997042169,-713.37590009,0.00017383,2]
[394826501,1763997042180,-935.0,0.00017394,2]
[394826502,1763997042190,-945.30275031,0.00017414,2]
[394826503,1763997042200,-370.05874563,0.00017522,2]
[394826504,1763997042210,-12999.72312782,0.00017591,2]
[394826505,1763997042220,-157.76984885,0.00017617,2]
[394826506,1763997042230,-682.93,0.00017656,2]
[394826507,1763997042239,-945.30275031,0.00017657,2]
[394826508,1763997042249,-420.0,0.00017706,2]
[394826509,1763997042259,-217.83804072,0.00017707,2]
[394826510,1763997042268,-370.05874563,0.00017711,2]
[394826511,1763997042278,-304.68820063,0.00017771,2]
[394826512,1763997042287,-150.10776003,0.00017771,3]
[394826513,1763997042299,-195.0,0.00017771,2]
[394826514,1763997042311,-250.0,0.00017771,2]
[394826515,1763997042325,-193.0,0.00017771,2]
[394826516,1763997042336,-195.0,0.00017771,2]
[394826517,1763997042347,-300.0,0.00017771,2]
[394826518,1763997042359,-1680.0,0.00017795,2]
[394826519,1763997042369,-1237.37352836,0.00017801,2]
[394826520,1763997042379,-244.23869,0.0001782,2]
[394826521,1763997042389,-335.8975008,0.00017898,2]
[394826522,1763997042399,-335.89750079,0.00017898,2]
[394826523,1763997042408,-335.89750079,0.00017899,2]
[394826524,1763997042417,-335.89750079,0.00017899,2]
[394826525,1763997042429,-335.89750079,0.00017899,2]
[394826526,1763997042438,-335.89750079,0.000179,2]
[394826527,1763997042448,-169.60175449,0.000179,2]
[394826528,1763997042458,-5000.0,0.000179,2]
[394826529,1763997042468,-1500.0,0.000179,2]
[394826530,1763997042477,-1500.0,0.000179,2]
[394826531,1763997042487,-1500.0,0.000179,2]
[394826532,1763997042496,-1500.0,0.000179,2]
[394826533,1763997042506,-1500.0,0.000179,2]
[394826534,1763997042516,-1500.0,0.000179,2]
[394826535,1763997042526,-1500.0,0.000179,2]
[394826536,1763997042535,-1500.0,0.000179,2]
[394826537,1763997042545,-1500.0,0.000179,2]
[394826538,1763997042555,-1500.0,0.000179,2]
[394826539,1763997042564,-1054.63,0.000179,2]
[394826540,1763997042574,-157.76984885,0.000179,2]
[394826541,1763997042583,-370.05874563,0.000179,2]
[394826542,1763997042592,-945.30275031,0.000179,2]
[394826543,1763997042601,-742.57147924,0.000179,2]
[394826544,1763997042611,-335.89750079,0.000179,2]
[394826545,1763997042621,-2000.0,0.00017916,2]
[394826546,1763997042631,-2149.43414714,0.00017916,2]
[394826547,1763997042640,-1012.14435342,0.00017916,2]
[394826548,1763997042649,-1873.50394795,0.00017916,2]
[394826549,1763997042659,-682.93,0.0001793,2]
[394826550,1763997042669,-244.23869,0.0001793,2]
[394826551,1763997042679,-500.01,0.0001794,2]
[394826552,1763997042688,-150.0,0.00017949,2]
[394826553,1763997042698,-150.0,0.00017949,2]
[394826554,1763997042708,-150.0,0.00017949,2]
[394826555,1763997042718,-150.0,0.00017949,2]
[394826556,1763997042729,-150.0,0.00017949,2]
[394826557,1763997042739,-150.0,0.00017949,2]
[394826558,1763997042749,-151.91393352,0.00017949,2]
[394826559,1763997042760,-150.0,0.00017949,2]
[394826560,1763997042771,-150.0,0.00017949,2]
[394826561,1763997042783,-150.0,0.00017949,2]
[394826562,1763997042794,-200.72643007,0.00017949,2]
[394826563,1763997042804,-500.0,0.00017949,2]
[394826564,1763997042815,-150.0,0.00017949,2]
[394826565,1763997042826,-150.0,0.00017949,2]
[394826566,1763997042838,-500.0,0.00017949,2]
[394826567,1763997042847,-150.0,0.00017949,2]
[394826568,1763997042857,-150.0,0.00017949,2]
[394826569,1763997042867,-1770.0,0.00017949,2]
[394826570,1763997042876,-500.0,0.00017949,2]
[394826571,1763997042885,-150.0,0.00017949,2]
[394826572,1763997042894,-150.0,0.00017949,2]
[394826573,1763997042904,-150.0,0.00017949,2]
[394826574,1763997042913,-150.0,0.00017949,2]
[394826575,1763997042929,-150.0,0.00017949,2]
[394826576,1763997042938,-150.0,0.00017949,2]
[394826577,1763997042948,-500.0,0.00017949,2]
[394826578,1763997042957,-500.0,0.00017949,2]
[394826579,1763997042968,-152.93953339,0.00017949,2]
[394826580,1763997042978,-150.0,0.00017949,2]
[394826581,1763997042987,-150.0,0.00017949,2]
[394826583,1763997042998,-150.0,0.00017949,2]
[394826584,1763997043008,-150.0,0.00017949,2]
[394826585,1763997043018,-154.22162365,0.00017949,2]
[394826586,1763997043028,-150.0,0.00017949,2]
[394826587,1763997043037,-150.0,0.00017949,2]
[394826588,1763997043047,-500.0,0.00017973,2]
[394826589,1763997043057,-500.0,0.00017973,2]
[394826590,1763997043067,-500.0,0.00017973,2]
[394826591,1763997043077,-504.9809457,0.00017973,2]
[394826592,1763997043087,-500.0,0.00017973,2]
[394826593,1763997043096,-500.45067972,0.00017973,2]
[394826594,1763997043106,-500.0,0.00017973,2]
[394826595,1763997043116,-500.0,0.00017973,2]
[394826596,1763997043125,-501.90024739,0.00017973,2]
[394826597,1763997043135,-500.0,0.00017973,2]
[394826598,1763997043144,-500.0,0.00017973,2]
[394826599,1763997043155,-501.01239348,0.00017973,2]
[394826600,1763997043164,-500.0,0.00017973,2]
[394826601,1763997043179,-500.0,0.00017973,2]
[394826602,1763997043189,-500.0,0.00017973,2]
[394826603,1763997043198,-500.0,0.00017973,2]
[394826604,1763997043208,-500.0,0.00017973,2]
[394826605,1763997043218,-500.0,0.00017973,2]
[394826606,1763997043228,-500.0,0.00017973,2]
[394826607,1763997043239,-500.0,0.00017973,2]
[394826608,1763997043249,-568.00209004,0.00017973,2]
[394826609,1763997043260,-493.19356656,0.00017973,2]
[394826610,1763997043270,-502.22800142,0.00017973,2]
[394826611,1763997043281,-500.4051858,0.00017973,2]
[394826612,1763997043293,-500.0,0.00017973,2]
[394826613,1763997043304,-500.0,0.00017973,2]
[394826614,1763997043321,-158.84342817,0.00017973,2]
[394826615,1763997043332,-343.30464528,0.00017973,2]
[394826616,1763997043483,-305.87253345,0.00017973,2]
[394826617,1763997043494,-330.84454354,0.00017973,2]
[394826618,1763997043503,-500.0,0.00017973,2]
[394826619,1763997043515,-164.89619302,0.00017973,2]
[394826620,1763997043524,-500.0,0.00017973,2]
[394826621,1763997043534,-500.0,0.00017973,2]
[394826622,1763997043543,-500.0,0.00017973,2]
[394826623,1763997043551,-500.0,0.00017973,2]
[394826624,1763997043560,-413.2167407,0.00017973,2]
[394826625,1763997043569,-199.92528655,0.0001799,2]
[394826626,1763997043578,-199.92528655,0.0001799,2]
[394826627,1763997043586,-168.0,0.00017991,2]
[394826628,1763997043596,-354.91848606,0.00017994,2]
[394826629,1763997043605,-500.0,0.00017994,2]
[394826630,1763997043615,-500.0,0.00017994,2]
[394826631,1763997043624,-500.0,0.00017994,2]
[394826632,1763997043633,-175.13545575,0.00017994,2]
[394826633,1763997043641,-500.0,0.00017994,2]
[394826634,1763997043650,-353.94938933,0.00017994,2]
[394826635,1763997043659,-500.0,0.00017994,2]
[394826636,1763997043669,-5870.0,0.00017995,2]
[394826637,1763997043681,-56976.5584067,0.00017995,2]
[394826638,1763997043691,-18248.3576293,0.00017998,2]
[394826639,1763997043700,-896.15879611,0.00017999,5]
[394826640,1763997043709,-300.0,0.00017999,2]
[394826641,1763997043718,-150.0,0.00018,2]
[394826642,1763997043728,-150.0,0.00018,2]
[394826643,1763997043737,-150.0,0.00018,2]
[394826644,1763997043747,-150.0,0.00018,2]
[394826645,1763997043756,-150.0,0.00018,2]
[394826646,1763997043765,-158.37972201,0.00018,2]
[394826647,1763997043774,-150.0,0.00018,2]
[394826648,1763997043783,-156.93912552,0.00018,2]
[394826649,1763997043792,-152.00272824,0.00018,2]
[394826650,1763997043801,-3373670.59151388,0.00018,2]
[394826651,1763997044099,-696.47787857,0.00018,2]
[394826652,1763997044215,-1737.94896,0.00018,2]
[394826661,1763997044806,-21734.97759796,0.00018,2]
[394826671,1763997046006,-345.20725634,0.00018,2]
[394826683,1763997144933,167.43,0.00012314,2]
[394826685,1763997171626,479.51,0.00015393,2]
[394826688,1763997352278,1852.42,0.00015393,2]
[394826689,1763997361408,166.66,0.00015711,2]
[394826691,1763997498553,10000.01,0.00015689,2]
[394826692,1763997498576,10000.01,0.00015689,2]
[394826693,1763997498598,6476.46,0.00015689,2]
[394826694,1763997536117,332.06,0.00013699,2]
[394826701,1763997760472,2751.0,0.00015635,2]
[394826702,1763997821856,200.0,0.0001544,2]
[394826703,1763997910454,7049.01,0.000154,2]
[394826704,1763997910477,620.13195142,0.000154,2]
[394826710,1763998000010,150.0,0.00015403,2]
[394826719,1763998115469,2081.73670302,0.0001,2]
[394826721,1763998177495,7148.14134556,0.00015744,2]
[394826722,1763998177519,2851.85865444,0.00015744,2]
[394826723,1763998189763,7148.15134556,0.00015744,2]
[394826724,1763998189785,2806.05865444,0.00015744,2]
[394826732,1763998231961,-166.66,0.00015761,2]
[394826733,1763998231971,-192.89147373,0.00015973,2]
[394826734,1763998231983,-450.0819833,0.00015973,2]
[394826735,1763998231992,-195.30824433,0.00015973,2]
[394826736,1763998232004,-304.69175567,0.00015973,2]
[394826737,1763998232015,-500.0,0.00015973,2]
[394826738,1763998232025,-500.0,0.00015973,2]
[394826739,1763998232034,-500.0,0.00015973,2]
[394826740,1763998232045,-500.0,0.00015973,2]
[394826741,1763998232054,-503.20529526,0.00015973,2]
[394826742,1763998232063,-500.0,0.00015973,2]
[394826743,1763998232073,-500.0,0.00015973,2]
[394826744,1763998232083,-9290.04,0.00015985,2]
[394826745,1763998232092,-9290.04,0.00015985,2]
[394826746,1763998232102,-300.0,0.00015994,2]
[394826747,1763998232111,-1200.0,0.00015994,2]
[394826748,1763998232120,-300.0,0.00015994,2]
[394826749,1763998232130,-300.0,0.00015994,2]
[394826750,1763998232139,-101902.14344425,0.00015995,2]
[394826751,1763998232151,-13294.17740707,0.00015995,2]
[394826752,1763998232162,-15511.51247134,0.00015995,2]
[394826753,1763998232173,-400.0,0.00015995,2]
[394826754,1763998232189,-4081.38560984,0.00015995,2]
[394826755,1763998232203,-1074.81340787,0.00015995,2]
[394826756,1763998232215,-6872.9809048,0.00015995,2]
[394826757,1763998232226,-678.00811142,0.00015995,2]
[394826758,1763998232237,-2690.95070822,0.00015995,2]
[394826759,1763998232248,-7018.43457497,0.00015995,2]
[394826760,1763998232275,-354.78291623,0.00015995,2]
[394826761,1763998232287,-183599.99999999,0.00015995,2]
[394826762,1763998232328,-283.76,0.00015995,2]
[394826764,1763998232339,-1448.20639765,0.00015995,2]
[394826766,1763998232350,-3668.11136025,0.00015995,2]
[394826790,1763998237936,-260.860001,0.00015995,2]
[394826791,1763998237949,-693.89683839,0.00015995,2]
[394826792,1763998237961,-416165.97584671,0.00015995,2]
[394826793,1763998237971,-166.66,0.00016042,2]
[394826794,1763998237980,-250.0,0.00016045,2]
[394826795,1763998237990,-250.0,0.00016065,2]
[394826796,1763998238001,-151.0,0.00016086,2]
[394826797,1763998238011,-773.00472776,0.00016094,2]
[394826798,1763998238021,-1000.0,0.00016095,2]
[394826799,1763998238031,-83485.2393,0.00016095,2]
[394826800,1763998238041,-2500.0,0.00016095,2]
[394826801,1763998238050,-4277.15821434,0.00016096,2]
[394826802,1763998238060,-151.0,0.00016141,2]
[394826803,1763998238069,-500.0,0.00016143,2]
[394826804,1763998238079,-500.0,0.00016173,2]
[394826805,1763998238088,-500.0,0.00016173,2]
[394826806,1763998238098,-500.0,0.00016194,2]
[394826807,1763998238107,-345.06812136,0.00016194,2]
[394826808,1763998238117,-580.24,0.00016195,2]
[394826809,1763998238126,-580.24,0.00016195,2]
[394826810,1763998238136,-580.24,0.00016195,2]
[394826811,1763998238145,-500.0,0.00016195,2]
[394826812,1763998238155,-429.11411391,0.00016195,2]
[394826813,1763998238164,-165.442,0.00016195,2]
[394826814,1763998238174,-1663.532,0.00016195,2]
[394826815,1763998238184,-500.0,0.00016195,2]
[394826817,1763998238193,-500.0,0.00016195,2]
[394826819,1763998238203,-500.0,0.00016195,2]
[394826820,1763998238214,-500.0,0.00016195,2]